[Event "*** SCC Grand Prix: Titled Tuesday Blitz"]
[Site "Chess.com"]
[Date "2020.07.07"]
[Round "8"]
[White "ferdipy"]
[Black "Shushik"]
[Result "1-0"]
[WhiteElo "2379"]
[BlackElo "2208"]
[TimeControl "180+1"]
[EndTime "11:37:59 PDT"]
[Termination "ferdipy won by checkmate"]

1. e4 {[%clk 0:03:00.9]} 1... e5 {[%clk 0:02:59.7]} 2. Nf3 {[%clk 0:02:59.4]}
2... Nc6 {[%clk 0:02:59.9]} 3. Bc4 {[%clk 0:02:58.2]} 3... Bc5 {[%clk
0:02:50.5]} 4. b4 {[%clk 0:02:57.8]} 4... Bxb4 {[%clk 0:02:49.7]} 5. c3 {[%clk
0:02:58.4]} 5... Ba5 {[%clk 0:02:48.7]} 6. d4 {[%clk 0:02:58.5]} 6... d6 {[%clk
0:02:48.9]} 7. Qb3 {[%clk 0:02:57.4]} 7... Qd7 {[%clk 0:02:45.9]} 8. O-O {[%clk
0:02:55.8]} 8... Nf6 {[%clk 0:02:37.1]} 9. Nbd2 {[%clk 0:02:54.2]} 9... O-O
{[%clk 0:02:35.1]} 10. Qa4 {[%clk 0:02:49.3]} 10... Bb6 {[%clk 0:02:29.5]} 11.
d5 {[%clk 0:02:44.4]} 11... Nd4 {[%clk 0:02:27.6]} 12. Qxd7 {[%clk 0:02:42.3]}
12... Nxf3+ {[%clk 0:02:27.3]} 13. Nxf3 {[%clk 0:02:41.6]} 13... Bxd7 {[%clk
0:02:28.2]} 14. Bd3 {[%clk 0:02:41.1]} 14... Nh5 {[%clk 0:02:20.6]} 15. g3
{[%clk 0:02:38.4]} 15... f5 {[%clk 0:02:15.9]} 16. Nd2 {[%clk 0:02:20.4]} 16...
fxe4 {[%clk 0:02:07.9]} 17. Nxe4 {[%clk 0:02:21.3]} 17... Bh3 {[%clk 0:02:07.5]}
18. Re1 {[%clk 0:02:18.2]} 18... Bf5 {[%clk 0:02:05.9]} 19. Be3 {[%clk
0:02:12.4]} 19... Rf7 {[%clk 0:01:57.7]} 20. a4 {[%clk 0:01:47.5]} 20... Raf8
{[%clk 0:01:51.8]} 21. Bxb6 {[%clk 0:01:37.9]} 21... axb6 {[%clk 0:01:51.1]} 22.
Ra2 {[%clk 0:01:28]} 22... Nf6 {[%clk 0:01:44]} 23. Nxf6+ {[%clk 0:01:26.1]}
23... Rxf6 {[%clk 0:01:43.9]} 24. Bxf5 {[%clk 0:01:25.8]} 24... Rxf5 {[%clk
0:01:44]} 25. Re4 {[%clk 0:01:24.6]} 25... Rf3 {[%clk 0:01:41.3]} 26. Rc4 {[%clk
0:01:22.2]} 26... R8f7 {[%clk 0:01:36.7]} 27. Rd2 {[%clk 0:01:22.8]} 27... Kf8
{[%clk 0:01:34.4]} 28. Kg2 {[%clk 0:01:20.9]} 28... Ke8 {[%clk 0:01:33.2]} 29.
Rxc7 {[%clk 0:01:17.8]} 29... Rxc7 {[%clk 0:01:29.8]} 30. Kxf3 {[%clk
0:01:18.7]} 30... Rxc3+ {[%clk 0:01:29.7]} 31. Ke4 {[%clk 0:01:18.6]} 31... Rc4+
{[%clk 0:01:26.7]} 32. Kf5 {[%clk 0:01:15.8]} 32... Ke7 {[%clk 0:01:17.1]} 33.
Rb2 {[%clk 0:01:12.2]} 33... Rxa4 {[%clk 0:01:13.4]} 34. Rxb6 {[%clk 0:01:11.3]}
34... Ra7 {[%clk 0:01:08.4]} 35. h4 {[%clk 0:01:11.1]} 35... Kd7 {[%clk
0:01:05.4]} 36. g4 {[%clk 0:01:09.8]} 36... Kc7 {[%clk 0:01:04.8]} 37. Rb4
{[%clk 0:01:08.7]} 37... Ra5 {[%clk 0:01:03.7]} 38. Ke6 {[%clk 0:01:09]} 38...
Rc5 {[%clk 0:00:56.9]} 39. f4 {[%clk 0:01:07.9]} 39... exf4 {[%clk 0:00:54.3]}
40. Rxf4 {[%clk 0:01:08.8]} 40... b5 {[%clk 0:00:51.2]} 41. Rf7+ {[%clk
0:01:08.7]} 41... Kb6 {[%clk 0:00:50.8]} 42. Kxd6 {[%clk 0:01:09.6]} 42... b4
{[%clk 0:00:46.7]} 43. Rxg7 {[%clk 0:01:05.5]} 43... b3 {[%clk 0:00:45.6]} 44.
Rg8 {[%clk 0:01:05.5]} 44... Rc7 {[%clk 0:00:37.8]} 45. Rb8+ {[%clk 0:00:20.2]}
45... Rb7 {[%clk 0:00:37.7]} 46. Re8 {[%clk 0:00:19.1]} 46... b2 {[%clk
0:00:36.2]} 47. Re1 {[%clk 0:00:17.2]} 47... Ka7 {[%clk 0:00:36.1]} 48. Rb1
{[%clk 0:00:16.3]} 48... Kb8 {[%clk 0:00:35.9]} 49. Ke6 {[%clk 0:00:15]} 49...
Kc8 {[%clk 0:00:31.2]} 50. d6 {[%clk 0:00:15]} 50... Kd8 {[%clk 0:00:24.1]} 51.
g5 {[%clk 0:00:14.6]} 51... Rb5 {[%clk 0:00:18.4]} 52. Kf6 {[%clk 0:00:10.9]}
52... Rb6 {[%clk 0:00:16.4]} 53. Ke6 {[%clk 0:00:11.8]} 53... Rb5 {[%clk
0:00:16.2]} 54. Kf6 {[%clk 0:00:09.1]} 54... Rb4 {[%clk 0:00:14.7]} 55. h5
{[%clk 0:00:08.5]} 55... Kd7 {[%clk 0:00:14.8]} 56. Kg7 {[%clk 0:00:08.9]} 56...
Rb5 {[%clk 0:00:14.7]} 57. Kh6 {[%clk 0:00:06.3]} 57... Kxd6 {[%clk 0:00:14.1]}
58. g6 {[%clk 0:00:06.9]} 58... hxg6 {[%clk 0:00:13.5]} 59. hxg6 {[%clk
0:00:07.7]} 59... Ke7 {[%clk 0:00:13.2]} 60. g7 {[%clk 0:00:03.9]} 60... Kf7
{[%clk 0:00:12.5]} 61. Rf1+ {[%clk 0:00:03.9]} 61... Ke7 {[%clk 0:00:09.9]} 62.
g8=Q {[%clk 0:00:04.1]} 62... b1=Q {[%clk 0:00:09.8]} 63. Rxb1 {[%clk
0:00:04.6]} 63... Rxb1 {[%clk 0:00:09.2]} 64. Qg5+ {[%clk 0:00:04.7]} 64... Kf8
{[%clk 0:00:06.9]} 65. Qf5+ {[%clk 0:00:04.4]} 65... Kg8 {[%clk 0:00:07]} 66.
Qxb1 {[%clk 0:00:04]} 66... Kh8 {[%clk 0:00:07.1]} 67. Qb8# {[%clk 0:00:03.8]}
1-0

[Event "*** SCC Grand Prix: Titled Tuesday Blitz"]
[Site "Chess.com"]
[Date "2020.07.07"]
[Round "8"]
[White "AnishOnYoutube"]
[Black "GadimbayliA"]
[Result "1-0"]
[WhiteElo "2819"]
[BlackElo "2894"]
[TimeControl "180+1"]
[EndTime "11:38:11 PDT"]
[Termination "AnishOnYoutube won by resignation"]

1. d4 {[%clk 0:02:59.1]} 1... d5 {[%clk 0:02:59.7]} 2. c4 {[%clk 0:02:59.5]}
2... e5 {[%clk 0:02:59.7]} 3. dxe5 {[%clk 0:02:57.5]} 3... d4 {[%clk 0:03:00.6]}
4. Nf3 {[%clk 0:02:57.8]} 4... Nc6 {[%clk 0:02:59.6]} 5. Nbd2 {[%clk 0:02:58]}
5... Nge7 {[%clk 0:02:59.6]} 6. Nb3 {[%clk 0:02:55.6]} 6... Ng6 {[%clk
0:02:59.9]} 7. Nbxd4 {[%clk 0:02:39.2]} 7... Ncxe5 {[%clk 0:02:59.7]} 8. Nxe5
{[%clk 0:02:30]} 8... Nxe5 {[%clk 0:02:57.6]} 9. e3 {[%clk 0:02:25.4]} 9... Bc5
{[%clk 0:02:21.7]} 10. Be2 {[%clk 0:02:23]} 10... O-O {[%clk 0:02:21.5]} 11. O-O
{[%clk 0:02:23.5]} 11... Qf6 {[%clk 0:02:15.9]} 12. b3 {[%clk 0:02:14.4]} 12...
Rd8 {[%clk 0:02:13.7]} 13. Bb2 {[%clk 0:02:12.5]} 13... Bf5 {[%clk 0:02:13.6]}
14. Qd2 {[%clk 0:02:01.3]} 14... Rd7 {[%clk 0:02:10.5]} 15. Rad1 {[%clk
0:02:00.2]} 15... Rad8 {[%clk 0:02:08.1]} 16. Qc3 {[%clk 0:02:00.7]} 16... Bg6
{[%clk 0:02:00.2]} 17. Nb5 {[%clk 0:02:00.1]} 17... Rxd1 {[%clk 0:01:57.6]} 18.
Rxd1 {[%clk 0:01:59.9]} 18... Rxd1+ {[%clk 0:01:57.6]} 19. Bxd1 {[%clk
0:02:00.4]} 19... Qd8 {[%clk 0:01:52.7]} 20. Be2 {[%clk 0:01:55.1]} 20... f6
{[%clk 0:01:52.5]} 21. Nd4 {[%clk 0:01:51]} 21... c6 {[%clk 0:01:42.9]} 22. Ne6
{[%clk 0:01:46.5]} 22... Qd6 {[%clk 0:01:43.1]} 23. Nxc5 {[%clk 0:01:47.1]}
23... Qxc5 {[%clk 0:01:44]} 24. h3 {[%clk 0:01:45.2]} 24... h6 {[%clk
0:01:40.8]} 25. Qd2 {[%clk 0:01:39.8]} 25... Qe7 {[%clk 0:01:38]} 26. Bd4 {[%clk
0:01:34.1]} 26... b6 {[%clk 0:01:36.4]} 27. Bc3 {[%clk 0:01:28.7]} 27... Kh7
{[%clk 0:01:24.8]} 28. Bd1 {[%clk 0:01:20.4]} 28... Kg8 {[%clk 0:01:20.5]} 29.
Bc2 {[%clk 0:01:19.3]} 29... Bxc2 {[%clk 0:01:14.3]} 30. Qxc2 {[%clk 0:01:20.2]}
30... Nf7 {[%clk 0:01:14.8]} 31. Qd3 {[%clk 0:01:13.2]} 31... Qa3 {[%clk
0:01:09.3]} 32. Qd2 {[%clk 0:01:10.9]} 32... Qe7 {[%clk 0:01:09.1]} 33. Bb4
{[%clk 0:01:07.5]} 33... Qe4 {[%clk 0:01:06.7]} 34. Bc3 {[%clk 0:01:06.2]} 34...
Qe7 {[%clk 0:01:05.5]} 35. Bb2 {[%clk 0:01:02.2]} 35... Ng5 {[%clk 0:01:05.1]}
36. f3 {[%clk 0:00:53.2]} 36... Nf7 {[%clk 0:01:05.1]} 37. Kf2 {[%clk
0:00:50.9]} 37... Ng5 {[%clk 0:01:02.4]} 38. Bc3 {[%clk 0:00:47.9]} 38... Nf7
{[%clk 0:00:59.6]} 39. Bb4 {[%clk 0:00:47.9]} 39... Qe5 {[%clk 0:00:58]} 40. Qd4
{[%clk 0:00:43.4]} 40... Qf5 {[%clk 0:00:55]} 41. Qd2 {[%clk 0:00:41.3]} 41...
Qe5 {[%clk 0:00:53.7]} 42. Bc3 {[%clk 0:00:41.6]} 42... Qe7 {[%clk 0:00:51.7]}
43. e4 {[%clk 0:00:40]} 43... Ng5 {[%clk 0:00:49]} 44. Bd4 {[%clk 0:00:38.5]}
44... Nf7 {[%clk 0:00:45.5]} 45. Be3 {[%clk 0:00:38.4]} 45... Ne5 {[%clk
0:00:45.9]} 46. Bf4 {[%clk 0:00:36.9]} 46... Nf7 {[%clk 0:00:43.7]} 47. Kf1
{[%clk 0:00:33.8]} 47... Qa3 {[%clk 0:00:43.2]} 48. Qd7 {[%clk 0:00:27.4]} 48...
g5 {[%clk 0:00:41.9]} 49. Be3 {[%clk 0:00:17.9]} 49... Qxa2 {[%clk 0:00:39.9]}
50. Qxc6 {[%clk 0:00:16.4]} 50... Qxb3 {[%clk 0:00:39.6]} 51. Kf2 {[%clk
0:00:14.5]} 51... Qb2+ {[%clk 0:00:38.9]} 52. Kg1 {[%clk 0:00:14.3]} 52... Qb3
{[%clk 0:00:38.5]} 53. Bf2 {[%clk 0:00:13.6]} 53... Qb1+ {[%clk 0:00:35.1]} 54.
Kh2 {[%clk 0:00:13.7]} 54... Qb2 {[%clk 0:00:35.5]} 55. Bg3 {[%clk 0:00:13.4]}
55... a5 {[%clk 0:00:31.8]} 56. Bc7 {[%clk 0:00:10.9]} 56... Qb4 {[%clk
0:00:23.6]} 57. Bxb6 {[%clk 0:00:09.8]} 57... Kg7 {[%clk 0:00:17.9]} 58. Bd4
{[%clk 0:00:09.7]} 58... Qb8+ {[%clk 0:00:17.4]} 59. Kh1 {[%clk 0:00:08]} 59...
Qb1+ {[%clk 0:00:16.4]} 60. Kh2 {[%clk 0:00:08.1]} 60... Qb8+ {[%clk 0:00:16.2]}
61. g3 {[%clk 0:00:08.6]} 61... Qd6 {[%clk 0:00:13.7]} 62. Qxd6 {[%clk
0:00:08.5]} 62... Nxd6 {[%clk 0:00:14.6]} 63. c5 {[%clk 0:00:08.6]} 63... Nc4
{[%clk 0:00:13.3]} 64. c6 {[%clk 0:00:07.5]} 64... Kf7 {[%clk 0:00:13.4]} 65. c7
{[%clk 0:00:06.3]} 65... Nd6 {[%clk 0:00:13.5]} 66. e5 {[%clk 0:00:06.5]} 66...
fxe5 {[%clk 0:00:11.9]} 67. Bxe5 {[%clk 0:00:07.4]} 67... Nc8 {[%clk 0:00:12.4]}
68. Kg2 {[%clk 0:00:07.4]} 68... Ke6 {[%clk 0:00:10.9]} 69. f4 {[%clk
0:00:07.8]} 69... gxf4 {[%clk 0:00:09.5]} 70. gxf4 {[%clk 0:00:08.5]} 70... Ne7
{[%clk 0:00:07.7]} 71. Kf3 {[%clk 0:00:07.6]} 71... Kf5 {[%clk 0:00:08.1]} 72.
Ke2 {[%clk 0:00:05.9]} 72... a4 {[%clk 0:00:06.2]} 73. Kd3 {[%clk 0:00:06.3]}
73... Nc8 {[%clk 0:00:04.5]} 74. Kc3 {[%clk 0:00:05.5]} 74... Ke6 {[%clk
0:00:04.8]} 75. Kb4 {[%clk 0:00:05.2]} 75... h5 {[%clk 0:00:02.9]} 76. Kxa4
{[%clk 0:00:05.4]} 76... Kd5 {[%clk 0:00:03.5]} 77. Kb5 {[%clk 0:00:05.7]} 77...
Ne7 {[%clk 0:00:03.6]} 78. Kb6 {[%clk 0:00:05.7]} 78... Ke6 {[%clk 0:00:04.2]}
79. Kb7 {[%clk 0:00:06]} 79... Kd7 {[%clk 0:00:04.8]} 80. f5 {[%clk 0:00:06.4]}
1-0

[Event "*** SCC Grand Prix: Titled Tuesday Blitz"]
[Site "Chess.com"]
[Date "2020.07.07"]
[Round "8"]
[White "rasmussvane"]
[Black "Indianlad"]
[Result "1-0"]
[WhiteElo "2889"]
[BlackElo "2955"]
[TimeControl "180+1"]
[EndTime "11:38:16 PDT"]
[Termination "rasmussvane won on time"]

1. Nf3 {[%clk 0:03:00.9]} 1... d5 {[%clk 0:02:59.2]} 2. g3 {[%clk 0:03:01.1]}
2... Nd7 {[%clk 0:02:59.2]} 3. d4 {[%clk 0:03:00.6]} 3... Nb6 {[%clk 0:02:59.3]}
4. Nbd2 {[%clk 0:02:54]} 4... Nf6 {[%clk 0:02:58.3]} 5. Bg2 {[%clk 0:02:52.1]}
5... Bf5 {[%clk 0:02:57]} 6. Nh4 {[%clk 0:02:52]} 6... e6 {[%clk 0:02:56.3]} 7.
a4 {[%clk 0:02:49.8]} 7... a5 {[%clk 0:02:55.7]} 8. O-O {[%clk 0:02:45]} 8... c6
{[%clk 0:02:54.4]} 9. Nxf5 {[%clk 0:02:40.3]} 9... exf5 {[%clk 0:02:54.5]} 10.
Nb3 {[%clk 0:02:40.3]} 10... Be7 {[%clk 0:02:49.2]} 11. Qd3 {[%clk 0:02:25]}
11... g6 {[%clk 0:02:48.4]} 12. Bh6 {[%clk 0:02:15.4]} 12... Ng4 {[%clk
0:02:48]} 13. Bf4 {[%clk 0:02:14.6]} 13... O-O {[%clk 0:02:47.1]} 14. Nd2 {[%clk
0:02:00.7]} 14... Bd6 {[%clk 0:01:46]} 15. Bxd6 {[%clk 0:01:50.8]} 15... Qxd6
{[%clk 0:01:46.9]} 16. Qb3 {[%clk 0:01:43]} 16... Ra6 {[%clk 0:01:32]} 17. c3
{[%clk 0:01:32.1]} 17... h5 {[%clk 0:01:27.9]} 18. e3 {[%clk 0:01:03.7]} 18...
h4 {[%clk 0:01:17.2]} 19. Rac1 {[%clk 0:00:54.4]} 19... Kg7 {[%clk 0:01:11.4]}
20. c4 {[%clk 0:00:53.1]} 20... hxg3 {[%clk 0:01:09.3]} 21. hxg3 {[%clk
0:00:52.8]} 21... dxc4 {[%clk 0:00:45.5]} 22. Nxc4 {[%clk 0:00:53.7]} 22... Nxc4
{[%clk 0:00:44.2]} 23. Rxc4 {[%clk 0:00:54.6]} 23... Qe7 {[%clk 0:00:11.2]} 24.
d5 {[%clk 0:00:41.6]} 24... Rg8 {[%clk 0:00:10.8]} 25. Rd1 {[%clk 0:00:34]}
25... Rh8 {[%clk 0:00:08.5]} 26. dxc6 {[%clk 0:00:20.3]} 26... bxc6 {[%clk
0:00:09.4]} 27. Qc3+ {[%clk 0:00:19.1]} 27... Nf6 {[%clk 0:00:10]} 28. Bxc6
{[%clk 0:00:15.7]} 28... Qe6 {[%clk 0:00:07.5]} 29. Bg2 {[%clk 0:00:11.2]} 29...
Rd6 {[%clk 0:00:07.4]} 30. Rxd6 {[%clk 0:00:10.1]} 30... Qxd6 {[%clk 0:00:08.3]}
31. Qd4 {[%clk 0:00:09.2]} 31... Qe6 {[%clk 0:00:07.1]} 32. Rc6 {[%clk
0:00:08.9]} 32... Qe7 {[%clk 0:00:07.6]} 33. Qc3 {[%clk 0:00:06.6]} 33... Rd8
{[%clk 0:00:06.9]} 34. Bf3 {[%clk 0:00:06.1]} 34... g5 {[%clk 0:00:05.3]} 35.
Rc5 {[%clk 0:00:04.1]} 35... g4 {[%clk 0:00:05.4]} 36. Be2 {[%clk 0:00:04]}
36... Kg6 {[%clk 0:00:05.9]} 37. Bd3 {[%clk 0:00:03.5]} 37... Rd6 {[%clk
0:00:03.9]} 38. Bxf5+ {[%clk 0:00:03.1]} 38... Kg7 {[%clk 0:00:04.4]} 39. Bxg4
{[%clk 0:00:03.4]} 39... Qe4 {[%clk 0:00:03.9]} 40. Rg5+ {[%clk 0:00:02.5]}
40... Kh6 {[%clk 0:00:04.1]} 41. Rf5 {[%clk 0:00:01.3]} 41... Nxg4 {[%clk
0:00:03.4]} 42. Qh8+ {[%clk 0:00:01.7]} 42... Kg6 {[%clk 0:00:03.5]} 43. Qh5+
{[%clk 0:00:02.3]} 43... Kg7 {[%clk 0:00:04.2]} 44. Qxf7+ {[%clk 0:00:02.7]}
44... Kh8 {[%clk 0:00:03.5]} 45. Qf8+ {[%clk 0:00:03.1]} 45... Kh7 {[%clk
0:00:03.7]} 46. Rf7+ {[%clk 0:00:03.5]} 46... Kg6 {[%clk 0:00:03.2]} 47. Qg8+
{[%clk 0:00:04]} 47... Kh5 {[%clk 0:00:03.2]} 48. Rh7+ {[%clk 0:00:04]} 48...
Nh6 {[%clk 0:00:03.7]} 49. Qf7+ {[%clk 0:00:04.1]} 49... Rg6 {[%clk 0:00:02.8]}
50. Qf4 {[%clk 0:00:02.8]} 50... Qxf4 {[%clk 0:00:03.1]} 51. exf4 {[%clk
0:00:03.7]} 51... Kg4 {[%clk 0:00:03.8]} 52. Ra7 {[%clk 0:00:03.9]} 52... Kf3
{[%clk 0:00:03.3]} 53. Rxa5 {[%clk 0:00:04]} 53... Ng4 {[%clk 0:00:04]} 54. Rc5
{[%clk 0:00:02.8]} 54... Rd6 {[%clk 0:00:04.3]} 55. Rc3+ {[%clk 0:00:03.1]}
55... Ke2 {[%clk 0:00:04.7]} 56. Kg2 {[%clk 0:00:03.4]} 56... Rd2 {[%clk
0:00:04.4]} 57. Rf3 {[%clk 0:00:02.5]} 57... Nf6 {[%clk 0:00:04.3]} 58. f5
{[%clk 0:00:02.5]} 58... Rxb2 {[%clk 0:00:04.4]} 59. Rf4 {[%clk 0:00:03.1]}
59... Kd3 {[%clk 0:00:04.4]} 60. g4 {[%clk 0:00:03.5]} 60... Nd5 {[%clk
0:00:03.6]} 61. Rf3+ {[%clk 0:00:03.6]} 61... Ke4 {[%clk 0:00:04.1]} 62. Kg3
{[%clk 0:00:04.3]} 62... Rb1 {[%clk 0:00:03.9]} 63. Ra3 {[%clk 0:00:03.1]} 63...
Rg1+ {[%clk 0:00:04.3]} 64. Kh4 {[%clk 0:00:03.5]} 64... Ke5 {[%clk 0:00:04.1]}
65. f3 {[%clk 0:00:03.9]} 65... Nf4 {[%clk 0:00:04]} 66. a5 {[%clk 0:00:04.2]}
66... Kf6 {[%clk 0:00:04.2]} 67. a6 {[%clk 0:00:04]} 67... Ne2 {[%clk
0:00:03.8]} 68. Kh3 {[%clk 0:00:03.1]} 68... Nf4+ {[%clk 0:00:03]} 69. Kh2
{[%clk 0:00:03.5]} 69... Rg2+ {[%clk 0:00:02.3]} 70. Kh1 {[%clk 0:00:04]} 70...
Rb2 {[%clk 0:00:01.4]} 71. a7 {[%clk 0:00:04.5]} 71... Rb1+ {[%clk 0:00:01.8]}
72. Kh2 {[%clk 0:00:05]} 72... Rb2+ {[%clk 0:00:02.5]} 73. Kg1 {[%clk
0:00:05.1]} 73... Rb1+ {[%clk 0:00:01.7]} 74. Kf2 {[%clk 0:00:05.2]} 74... Rb2+
{[%clk 0:00:02.6]} 75. Ke3 {[%clk 0:00:04.5]} 75... Nd5+ {[%clk 0:00:03.3]} 76.
Kd4 {[%clk 0:00:03.8]} 76... Nc7 {[%clk 0:00:03.4]} 77. a8=Q {[%clk 0:00:03.7]}
77... Nxa8 {[%clk 0:00:04.1]} 78. Rxa8 {[%clk 0:00:04.4]} 1-0

[Event "*** SCC Grand Prix: Titled Tuesday Blitz"]
[Site "Chess.com"]
[Date "2020.07.07"]
[Round "8"]
[White "natelleka"]
[Black "ahachess"]
[Result "0-1"]
[WhiteElo "2114"]
[BlackElo "2280"]
[TimeControl "180+1"]
[EndTime "11:38:26 PDT"]
[Termination "ahachess won by resignation"]

1. e4 {[%clk 0:03:00.5]} 1... c5 {[%clk 0:02:59.2]} 2. Nf3 {[%clk 0:03:00.3]}
2... d6 {[%clk 0:02:59.3]} 3. d4 {[%clk 0:02:59.7]} 3... cxd4 {[%clk 0:02:59.6]}
4. Nxd4 {[%clk 0:03:00.1]} 4... Nf6 {[%clk 0:03:00.4]} 5. Nc3 {[%clk 0:02:59.1]}
5... a6 {[%clk 0:03:00.9]} 6. a4 {[%clk 0:02:58.6]} 6... g6 {[%clk 0:03:00.3]}
7. Be2 {[%clk 0:02:56.9]} 7... Bg7 {[%clk 0:03:00.6]} 8. O-O {[%clk 0:02:56.6]}
8... O-O {[%clk 0:03:00.1]} 9. Bg5 {[%clk 0:02:55.5]} 9... b6 {[%clk 0:02:51.4]}
10. Re1 {[%clk 0:02:54.2]} 10... Bb7 {[%clk 0:02:51]} 11. Bf1 {[%clk 0:02:53.9]}
11... Qc7 {[%clk 0:02:50.5]} 12. f4 {[%clk 0:02:52.9]} 12... Nbd7 {[%clk
0:02:46.6]} 13. Qd2 {[%clk 0:01:54.1]} 13... Rfe8 {[%clk 0:02:37]} 14. Rad1
{[%clk 0:01:50.8]} 14... Rad8 {[%clk 0:02:32.7]} 15. Qf2 {[%clk 0:01:34.4]}
15... Qc5 {[%clk 0:01:53.6]} 16. Bh4 {[%clk 0:01:26.8]} 16... Ng4 {[%clk
0:01:48.6]} 17. Qd2 {[%clk 0:01:21.8]} 17... e5 {[%clk 0:01:22.6]} 18. fxe5
{[%clk 0:00:51.7]} 18... dxe5 {[%clk 0:01:18.8]} 19. Bxd8 {[%clk 0:00:51.6]}
19... exd4 {[%clk 0:01:17.4]} 20. Nd5 {[%clk 0:00:45.4]} 20... d3+ {[%clk
0:01:06.6]} 21. Ne3 {[%clk 0:00:20.1]} 21... Nxe3 {[%clk 0:01:04.6]} 22. Rxe3
{[%clk 0:00:20]} 22... Bh6 {[%clk 0:00:38]} 23. Re1 {[%clk 0:00:15.4]} 23...
Rxd8 {[%clk 0:00:30.4]} 24. cxd3 {[%clk 0:00:13.9]} 24... Bxe3+ {[%clk
0:00:20.2]} 25. Rxe3 {[%clk 0:00:13.3]} 25... Ne5 {[%clk 0:00:19.9]} 26. Kh1
{[%clk 0:00:10.3]} 26... Ng4 {[%clk 0:00:19.9]} 27. Rf3 {[%clk 0:00:09.3]} 27...
f5 {[%clk 0:00:18.3]} 28. h3 {[%clk 0:00:08.2]} 28... fxe4 {[%clk 0:00:18.2]}
29. Rf4 {[%clk 0:00:07.6]} 29... e3 {[%clk 0:00:17.7]} 30. Qe2 {[%clk
0:00:05.8]} 30... Nf2+ {[%clk 0:00:18]} 31. Kh2 {[%clk 0:00:05.9]} 31... Re8
{[%clk 0:00:18.2]} 32. g3 {[%clk 0:00:05.6]} 32... Qd5 {[%clk 0:00:17.2]} 33. g4
{[%clk 0:00:03.8]} 33... Qh1+ {[%clk 0:00:17.3]} 34. Kg3 {[%clk 0:00:04.4]}
34... Qg1+ {[%clk 0:00:18]} 35. Kh4 {[%clk 0:00:04.6]} 35... g5+ {[%clk
0:00:17.5]} 36. Kh5 {[%clk 0:00:04.8]} 36... Qg3 {[%clk 0:00:17.9]} 37. Kxg5
{[%clk 0:00:03.6]} 37... Re5+ {[%clk 0:00:17.7]} 38. Rf5 {[%clk 0:00:03.4]}
38... Rxf5+ {[%clk 0:00:17.7]} 39. Kxf5 {[%clk 0:00:03.7]} 39... Qd6 {[%clk
0:00:16.2]} 40. Qxe3 {[%clk 0:00:03.2]} 40... Qd5+ {[%clk 0:00:15.6]} 41. Kf4
{[%clk 0:00:02.6]} 41... Qd6+ {[%clk 0:00:12.3]} 42. Kf5 {[%clk 0:00:01.6]}
42... Qg6+ {[%clk 0:00:12.6]} 43. Kf4 {[%clk 0:00:02.3]} 43... Qf6+ {[%clk
0:00:11.9]} 44. Kg3 {[%clk 0:00:02.7]} 44... Nd1 {[%clk 0:00:12.2]} 45. Qe8+
{[%clk 0:00:01.8]} 45... Kg7 {[%clk 0:00:13]} 46. Be2 {[%clk 0:00:01.5]} 46...
Nf2 {[%clk 0:00:12.3]} 47. Qd7+ {[%clk 0:00:01.4]} 47... Qf7 {[%clk 0:00:12.5]}
48. Qd4+ {[%clk 0:00:02.1]} 48... Qf6 {[%clk 0:00:13.4]} 49. Qxf2 {[%clk
0:00:02.3]} 49... Qe5+ {[%clk 0:00:13.5]} 50. Kh4 {[%clk 0:00:01.4]} 50... Qe7+
{[%clk 0:00:12.9]} 51. Kg3 {[%clk 0:00:01.8]} 51... Qd6+ {[%clk 0:00:13.7]} 52.
Kh4 {[%clk 0:00:02.5]} 52... h6 {[%clk 0:00:13.3]} 53. Qf3 {[%clk 0:00:02.4]}
53... Qe7+ {[%clk 0:00:13.5]} 54. Kg3 {[%clk 0:00:02.7]} 54... Qe5+ {[%clk
0:00:14.4]} 55. Qf4 {[%clk 0:00:02.8]} 55... Qxe2 {[%clk 0:00:14.9]} 56. Qc7+
{[%clk 0:00:03.1]} 56... Kf6 {[%clk 0:00:14.7]} 57. Qxb7 {[%clk 0:00:03.4]}
57... Qxd3+ {[%clk 0:00:15.5]} 58. Kg2 {[%clk 0:00:03.6]} 58... Qd4 {[%clk
0:00:15.4]} 59. Kf3 {[%clk 0:00:02.5]} 59... Qd3+ {[%clk 0:00:14.7]} 60. Kf2
{[%clk 0:00:02.5]} 60... Qd4+ {[%clk 0:00:14.8]} 61. Ke2 {[%clk 0:00:02.6]}
61... Qe4+ {[%clk 0:00:14.2]} 62. Kd2 {[%clk 0:00:02.7]} 62... Qxb7 {[%clk
0:00:14.3]} 63. Kc2 {[%clk 0:00:02.9]} 63... Qc6+ {[%clk 0:00:14.6]} 64. Kd3
{[%clk 0:00:03.2]} 64... Qd5+ {[%clk 0:00:15.1]} 65. Kc3 {[%clk 0:00:03.5]}
65... Qc5+ {[%clk 0:00:15.7]} 66. Kd3 {[%clk 0:00:03.9]} 66... b5 {[%clk
0:00:16.2]} 67. axb5 {[%clk 0:00:03.8]} 67... Qxb5+ {[%clk 0:00:16.8]} 68. Kc2
{[%clk 0:00:04]} 68... Kg5 {[%clk 0:00:17.4]} 69. Kc3 {[%clk 0:00:04.3]} 69...
Kh4 {[%clk 0:00:18.3]} 70. Kd2 {[%clk 0:00:04.4]} 70... Kxh3 {[%clk 0:00:19.2]}
0-1